bitfinex/quotes_ETHUSD_20241212
["timestamp","ask_amount","ask_price","bid_price","bid_amount"]
[1734010552886,2.53945,3937.9,3936.2,2.03237]
[1734010553083,3.0,3938.6,3936.3,2.03234]
[1734010553084,1.586,3938.1,3936.3,2.03234]
[1734010553285,1.586,3938.1,3935.7,1.6149]
[1734010553286,1.586,3938.1,3936.6,3.8999893]
[1734010553608,1.6171,3939.2,3936.7,3.0]
[1734010553813,2.539,3938.6,3936.7,5.03213]
[1734010554150,0.03174046,3939.1,3936.7,5.03213]
[1734010554151,2.5388,3938.9,3936.7,3.0]
[1734010554352,1.6171,3939.2,3935.8,2.03262]
[1734010554353,1.6171,3939.2,3937.4,3.0]
[1734010554637,1.6171,3939.2,3937.1,1.5845]
[1734010554638,1.5645,3940.2,3938.5,2.0312]
[1734010554780,0.0253955,3940.1,3937.5,3.8999893]
[1734010554986,2.53854,3939.3,3937.6,3.0]
[1734010555285,6.57268,3940.6,3937.1,1.5845]
[1734010555286,4.10325,3939.0,3937.2,5.03187]
[1734010555485,1.5645,3939.0,3937.3,2.03184]
[1734010556541,1.5645,3939.0,3937.1,1.5845]
[1734010556542,0.55,3938.9,3937.1,1.5845]
[1734010556751,0.55,3938.9,3935.0,0.25]
[1734010556752,0.55,3938.0,3935.2,1.6594]
[1734010556962,1.5489,3937.2,3934.9,2.03307]
[1734010557246,1.5489,3937.2,3934.6,1.6594]
[1734010557247,0.55,3936.9,3934.7,2.03318]
[1734010557542,0.03175928,3936.8,3934.5,3.4697243]
[1734010557747,0.55,3936.9,3933.9,3.8999893]
[1734010557969,0.55,3936.9,3933.8,1.016123]
[1734010557970,0.55,3936.9,3935.3,2.03286]
[1734010558249,0.55,3936.9,3934.5,3.8999893]
[1734010558250,2.5404,3936.4,3934.5,3.8999893]
[1734010558462,0.03176132,3936.3,3934.5,3.8999893]
[1734010558764,0.03176057,3936.4,3934.8,2.03312]
[1734010559158,0.03176057,3936.4,3933.7,2.03366]
[1734010559159,0.03176059,3936.4,3933.7,2.03366]
[1734010559350,1.6478,3935.3,3933.7,2.03366]
[1734010559571,3.8999893,3934.9,3932.9,0.50585237]
[1734010559738,0.55,3934.6,3931.6,2.03479]
[1734010559925,0.03177719,3934.5,3932.1,0.12707218]
[1734010560121,0.03177719,3934.5,3932.9,2.03408]
[1734010560365,4.22070804,3935.3,3933.5,2.0338]
[1734010560676,4.22070804,3935.3,3932.5,3.46662]
[1734010560677,0.55,3935.2,3933.7,2.0337]
[1734010560978,0.58177236,3935.1,3932.5,1.4323]
[1734010561172,2.54146,3934.8,3932.5,3.4666]
[1734010561380,0.58177236,3935.1,3932.5,1.4323]
[1734010561517,0.58177236,3935.1,3932.0,0.12622198]
[1734010561518,1.5147,3934.7,3931.6,2.448948]
[1734010561720,1.5147,3933.7,3931.6,1.4323]
[1734010562032,1.5147,3933.7,3930.6,2.03531]
[1734010562033,0.78825324,3933.6,3931.1,1.016884]
[1734010562232,1.5147,3933.7,3931.9,1.4323]
[1734010562465,1.5147,3933.7,3931.9,3.46691]
[1734010562466,4.05685,3933.7,3931.9,3.46691]
[1734010562667,0.03177994,3933.6,3931.1,2.449184]
[1734010562983,2.5427,3932.9,3931.1,3.46731]
[1734010563120,0.03179074,3932.8,3930.5,1.017077]
[1734010563320,0.55,3933.6,3930.4,1.4323]
[1734010563321,1.5843,3932.5,3930.8,2.03519]
[1734010563581,0.02533306,3932.4,3929.9,2.56522033]
[1734010563871,2.54338,3931.8,3929.9,2.56522033]
[1734010564053,1.5843,3931.4,3929.6,0.12977642]
[1734010564221,1.5843,3931.4,3929.8,2.03571]
[1734010564424,1.5843,3931.4,3929.5,1.4323]
[1734010564967,1.5843,3932.5,3931.6,2.03477]
[1734010565126,1.5843,3932.5,3931.1,2.03505]
[1734010565477,1.5843,3932.5,3930.2,1.4323]
[1734010565637,1.5843,3932.5,3930.8,2.03519]
[1734010565824,1.5843,3932.5,3930.8,0.252051]
[1734010565825,0.03179098,3932.4,3930.8,0.252051]
[1734010566179,0.1265752,3933.8,3931.7,2.03473]
[1734010566180,1.5124,3933.4,3931.7,2.03473]
[1734010566327,1.5124,3933.4,3931.0,2.0351]
[1734010566634,1.5124,3933.4,3932.2,2.03445]
[1734010566838,2.54241,3933.3,3930.3,3.0]
[1734010567039,1.5972,3933.1,3930.5,3.0]
[1734010567240,1.5972,3933.1,3930.4,2.03537]
[1734010567241,1.5972,3932.6,3930.4,2.03537]
[1734010567426,1.5972,3932.6,3929.7,1.4323]
[1734010567427,2.54299,3932.4,3929.7,1.4323]
[1734010567632,1.62900024,3932.6,3930.8,2.03517]
[1734010567633,4.14007,3932.6,3930.8,2.03517]
[1734010567937,1.5972,3932.6,3932.1,2.03451]
[1734010568149,0.25,3935.0,3929.7,2.449515]
[1734010568150,1.72416657,3934.6,3933.2,2.03394]
[1734010568351,1.5972,3934.6,3933.3,2.0339]
[1734010568578,1.5972,3934.6,3932.3,1.4323]
[1734010568935,0.03177207,3934.5,3932.3,1.4323]
[1734010569133,0.03177799,3934.5,3932.3,1.4323]
[1734010569333,5.10831543,3935.9,3932.3,1.4323]
[1734010569334,1.6473,3936.0,3934.9,2.03305]
[1734010569536,1.6473,3936.0,3933.2,2.03396]
[1734010569865,2.54098,3935.5,3933.7,2.03368]
[1734010570071,0.03177122,3935.5,3933.1,1.4323]
[1734010570272,1.6473,3936.0,3933.2,3.0]
[1734010570589,0.15806597,3937.0,3933.3,0.02540999]
[1734010570590,0.28673543,3937.0,3933.3,0.02540999]
[1734010570748,0.02536294,3936.8,3933.5,4.97996368]
[1734010570948,0.02536294,3937.5,3934.8,2.03309]
[1734010571179,2.53938,3938.0,3935.2,3.0]
[1734010571379,2.53931,3938.1,3936.1,2.03244]
[1734010571563,0.02536294,3938.0,3936.1,2.03244]
[1734010571766,0.02536294,3938.0,3935.0,1.5476]
[1734010571767,0.02536294,3938.0,3935.0,3.58062]
[1734010571959,2.53942,3937.9,3935.6,2.03269]
[1734010572163,0.26935668,3937.8,3935.7,0.0254044]
[1734010572362,0.02536294,3938.6,3935.7,0.0254044]
[1734010572574,4.97996368,3939.6,3935.7,0.0254044]
[1734010572575,0.02536294,3939.2,3936.8,2.03209]
[1734010572777,0.02536294,3939.2,3937.2,2.03188]
[1734010572778,2.53882,3938.9,3937.2,2.03188]
[1734010572959,0.02536294,3939.2,3935.9,2.03257]
[1734010572960,0.15041423,3939.2,3937.3,0.02539416]
[1734010573172,0.15041423,3939.2,3936.6,3.0]
[1734010573491,2.53886,3938.8,3936.7,0.02539525]
[1734010573785,2.53886,3938.8,3936.5,1.5359]
[1734010573786,2.53907,3938.5,3936.5,1.5359]
[1734010573990,2.53893,3938.7,3937.2,2.03186]
[1734010574188,2.5393,3938.1,3936.6,2.03219]
[1734010574408,0.02230393,3938.0,3936.6,3.0]
[1734010574724,2.53877,3938.9,3936.7,0.02539572]
[1734010574854,2.53877,3938.9,3936.0,3.12531445]
[1734010574855,1.6321,3938.7,3935.9,1.5359]
[1734010575196,2.53924,3938.2,3936.0,2.05786954]
[1734010575348,2.53907,3938.5,3936.8,2.03208]
[1734010575549,0.02230393,3938.4,3936.6,2.03219]
[1734010575750,1.6321,3938.7,3935.9,1.5359]
[1734010575751,4.17103,3938.7,3936.7,0.02539625]
[1734010575956,2.53904,3938.5,3936.9,2.03204]
[1734010576156,2.53943,3937.9,3936.3,2.03235]
[1734010576417,2.53976,3937.4,3935.9,3.56843]
[1734010576708,2.956113,3938.6,3935.5,2.03277]
[1734010576709,2.54002,3937.0,3935.5,2.03277]
[1734010576900,0.27630593,3936.9,3935.3,1.6454]
[1734010577070,0.02230393,3937.9,3935.7,2.03262]
[1734010577273,1.6295,3938.1,3935.9,4.06514]
[1734010577472,1.6295,3938.1,3936.0,0.02539737]
[1734010578001,0.02230393,3938.0,3936.2,3.0]
[1734010578227,0.02230393,3938.0,3935.8,2.03258]
[1734010578500,1.6295,3938.1,3937.2,2.03188]
[1734010578718,1.6295,3938.1,3936.0,3.0]
[1734010578719,0.02230393,3938.0,3936.0,0.12775144]
[1734010578858,1.6295,3938.1,3936.0,0.12775144]
[1734010579185,1.6295,3938.1,3934.9,0.5064872]
[1734010579186,0.02230393,3938.0,3934.9,0.5064872]
[1734010579417,1.6295,3938.1,3935.4,2.05823072]
[1734010579556,1.6295,3938.1,3936.5,2.03222]
[1734010579763,1.582,3936.8,3935.2,2.03292]
[1734010580062,2.54065,3936.1,3934.3,1.6059]
[1734010580260,0.02230393,3936.0,3934.3,1.6059]
[1734010580511,0.27858632,3936.0,3934.3,1.6059]
[1734010580796,0.25628239,3936.0,3934.8,2.03313]
[1734010580980,0.25628239,3936.0,3934.7,0.02541023]
[1734010580981,0.02230393,3935.9,3934.3,1.6059]
[1734010581186,1.582,3936.8,3934.7,0.0254137]
[1734010581420,1.582,3936.8,3934.3,1.6059]
[1734010581421,4.12216,3936.8,3934.6,2.58752159]
[1734010581704,4.12216,3936.8,3934.3,1.6059]
[1734010581705,2.54026,3936.6,3934.3,1.6059]
[1734010581908,2.54153,3934.7,3933.5,1.5451]
[1734010582105,2.54128,3935.1,3933.5,1.5451]
[1734010582262,1.63,3936.0,3934.1,2.03347]
[1734010582263,0.55,3935.9,3934.1,2.03347]
[1734010582464,0.55384032,3935.9,3934.6,2.03323]
[1734010582764,1.63,3936.0,3934.5,2.03325]
[1734010583087,1.63,3936.0,3934.6,0.0254098]
[1734010583286,1.6231,3937.1,3935.5,2.03277]
[1734010583501,2.53946,3937.9,3935.6,0.02540186]
[1734010583777,2.53974,3937.5,3936.0,2.03247]
[1734010583982,0.415326,3937.8,3936.8,2.03206]
[1734010584201,1.6138,3938.1,3936.3,0.02539695]
[1734010584202,2.53937,3938.0,3936.3,0.02539695]
[1734010584407,2.53953,3937.8,3936.1,3.0]
[1734010584611,2.5395,3937.8,3936.4,2.0323]
[1734010584764,1.63610393,3938.1,3935.5,3.0253986]
[1734010584966,1.63610393,3938.1,3936.1,2.03246]
[1734010584967,2.53975,3937.4,3936.1,2.03246]
[1734010585180,2.54014,3936.8,3935.2,2.03292]
[1734010585379,0.02230393,3936.7,3934.9,1.5701]
[1734010585605,2.54005,3937.0,3933.7,1.5704]
[1734010585911,2.5409,3935.6,3933.9,2.03358]
[1734010586217,4.08305,3935.7,3934.0,0.02541288]
[1734010586402,1.950505,3935.7,3934.8,2.03309]
[1734010586714,1.950505,3935.7,3933.8,2.1580485]
[1734010586715,4.08308,3935.7,3933.8,2.1580485]
[1734010586920,0.02230393,3935.6,3933.8,2.1580085]
[1734010587119,2.54121,3935.2,3933.8,2.1580085]
[1734010587425,2.541,3935.5,3934.0,2.03353]
[1734010587627,0.40832,3935.4,3933.8,0.02541379]
[1734010587767,1.5422,3935.7,3934.1,0.02541379]
[1734010588080,1.5422,3935.7,3933.7,1.69961097]
[1734010588412,0.02230393,3936.7,3934.2,3.90840317]
[1734010588581,0.02230393,3936.7,3933.7,3.73327097]
[1734010588582,1.5825,3936.6,3935.8,2.03262]
[1734010588765,0.253975,3937.3,3935.9,0.02540334]
[1734010588968,1.5825,3937.4,3935.4,3.90840317]
[1734010588969,1.5825,3937.4,3936.6,2.03217]
[1734010589170,1.5825,3937.4,3935.5,0.02540073]
[1734010589171,1.5825,3937.4,3935.5,3.02540073]
[1734010589404,1.5825,3937.4,3936.4,2.03226]
[1734010589706,0.02230393,3937.3,3935.5,3.0]
[1734010589865,1.5825,3937.4,3935.5,5.05813137]
[1734010590069,1.5825,3937.4,3935.8,2.03259]
[1734010590070,2.53996,3937.1,3935.8,2.03259]
[1734010590313,0.15825,3937.3,3934.9,3.0]
[1734010590314,0.02230393,3937.0,3934.9,3.0]
[1734010590616,0.02230393,3937.0,3935.0,2.03303]
[1734010590819,0.15825,3937.3,3935.1,0.02540729]
[1734010590966,0.15825,3937.3,3934.9,3.12613875]
[1734010590967,0.19637893,3937.2,3935.8,2.03261]
[1734010591174,0.174075,3937.2,3936.1,2.03243]
[1734010591494,0.02230393,3937.1,3934.9,5.15916875]
[1734010591674,2.54074,3935.9,3934.1,3.90840317]
[1734010592021,2.54074,3935.9,3933.8,3.65224]
[1734010592022,2.54084,3935.7,3933.8,3.65224]
[1734010592220,0.02230393,3935.6,3933.8,1.6186]
[1734010592368,1.6243,3934.8,3933.4,2.03381]
[1734010592706,1.6243,3934.8,3933.2,2.03396]
[1734010592910,1.6243,3934.8,3933.4,2.03383]
[1734010593111,1.6243,3934.8,3932.3,5.52700317]
[1734010593112,2.54172,3934.4,3932.3,5.52700317]
[1734010593326,0.43887093,3934.7,3932.4,0.12710358]
[1734010593611,2.54108,3935.4,3931.7,3.90840317]
[1734010593612,1.569,3933.5,3931.7,3.90840317]
[1734010593820,1.569,3933.5,3931.8,0.14983782]
[1734010594313,1.569,3934.1,3933.3,2.03391]
[1734010594577,1.569,3934.1,3931.8,0.14983782]
[1734010594578,2.54214,3933.7,3932.2,2.03448]
[1734010594872,2.54214,3933.7,3931.5,1.6054]
[1734010594873,0.02230393,3933.7,3932.0,2.03456]
[1734010595158,0.1569,3934.0,3932.1,0.02542733]
[1734010595312,0.1569,3934.0,3931.7,3.90840317]
[1734010595313,0.55,3934.0,3931.7,3.90840317]
[1734010595513,2.54239,3933.4,3931.7,3.90840317]
[1734010595714,1.5057,3932.8,3930.6,0.1165787]
[1734010595910,2.5431,3932.2,3930.6,0.1165787]
[1734010596140,1.5484,3932.3,3930.6,0.1165787]
[1734010596141,0.02230393,3932.1,3930.6,0.1165787]
[1734010596354,2.5439,3931.0,3930.6,0.1165787]
[1734010596524,1.57070393,3930.9,3930.6,0.1165787]
[1734010596710,2.70108039,3930.8,3930.6,0.1165787]
[1734010596915,2.72338432,3930.8,3930.6,0.1165787]
[1734010597461,0.02230393,3930.7,3930.6,0.1165787]
[1734010597644,2.70108039,3930.8,3930.6,0.1165787]
[1734010597810,2.54401,3930.8,3930.6,0.1165787]
[1734010598445,1.5484,3930.9,3930.6,0.1165787]
[1734010598667,1.64710393,3932.6,3930.6,0.1165787]
[1734010599038,2.56517393,3932.6,3930.6,0.1165787]
[1734010599233,2.54403,3930.8,3930.6,0.1165787]
[1734010599492,1.5644,3930.7,3930.6,0.1165787]
[1734010600061,1.58670393,3930.7,3930.6,0.1165787]
[1734010600273,2.54508,3929.2,3927.6,0.51225939]
[1734010600435,2.54508,3929.2,3927.7,2.03678]
[1734010600632,3.0,3930.0,3928.1,2.03658]
[1734010600851,3.0,3930.0,3927.7,0.0254523]
[1734010600852,3.02230393,3930.0,3927.6,0.51225939]
[1734010601176,4.12827,3928.6,3926.8,2.03728]
[1734010601334,1.995627,3928.6,3927.3,0.50966991]
[1734010601520,2.54592,3927.9,3926.7,0.1633454]
[1734010601718,0.02230393,3927.8,3926.7,0.1633454]
[1734010601932,2.54617,3927.5,3926.7,0.1633454]
[1734010602166,0.02230393,3927.4,3926.7,0.1633454]
[1734010602444,0.02230393,3927.9,3926.7,0.1633454]
[1734010602653,3.0,3927.7,3926.7,0.1633454]
[1734010603000,2.54655,3926.9,3926.7,0.1633454]
[1734010603146,1.5828,3926.8,3926.7,0.1633454]
[1734010603347,1.60510393,3926.8,3926.7,0.1633454]
[1734010603546,2.54686,3926.4,3926.3,0.4983255]
[1734010603806,1.5828,3926.3,3923.7,0.625]
[1734010603954,0.18281432,3926.2,3923.7,0.625]
[1734010604316,0.18281432,3926.2,3926.1,0.52010911]
[1734010604317,0.02230393,3926.2,3926.1,0.52010911]
[1734010604594,1.5828,3926.3,3924.4,1.5978]
[1734010604595,1.5828,3926.3,3925.5,0.49939432]
[1734010604803,1.5527,3927.1,3925.8,2.03777]
[1734010605009,1.5527,3927.1,3925.5,0.49939432]
[1734010605010,1.5527,3927.1,3925.5,0.5248656]
[1734010605296,1.5527,3927.1,3925.6,3.02546782]
[1734010605596,1.5527,3927.7,3926.6,2.03736]
[1734010605826,1.57500393,3928.6,3926.3,2.03754]
[1734010605983,2.5455,3928.5,3926.7,3.9338661]
[1734010606326,1.5527,3928.6,3925.8,2.03778]
[1734010606327,2.54648,3927.0,3925.8,0.12516667]
[1734010606530,2.54608,3927.6,3925.5,1.5485]
[1734010606817,1.61493469,3927.5,3925.5,1.5485]
[1734010607118,1.5831,3928.2,3926.2,3.90840317]
[1734010607276,0.03182631,3928.1,3926.5,2.03741]
[1734010607469,1.5831,3928.2,3925.6,5.94629317]
[1734010607470,0.41605663,3928.0,3925.6,5.94629317]
[1734010607674,1.5831,3928.2,3926.3,5.03754]
[1734010607978,1.5831,3928.2,3927.1,2.03708]
[1734010608181,1.5853,3928.9,3927.0,2.03717]
[1734010608377,1.5853,3928.9,3926.9,1.6426]
[1734010608576,1.5853,3928.9,3927.5,2.03688]
[1734010608811,1.5853,3928.9,3927.1,0.01587282]
[1734010609012,1.5853,3928.9,3926.9,1.6426]
[1734010609322,2.54431,3930.4,3928.6,2.03634]
[1734010609557,0.254403,3930.8,3928.6,2.03631]
[1734010609558,1.65721513,3930.3,3928.6,2.03631]
[1734010609811,1.6254,3930.3,3928.2,2.03655]
[1734010610011,1.6254,3930.3,3926.9,1.8926]
[1734010610012,2.57622749,3930.2,3928.4,2.03643]
[1734010610218,1.6254,3930.3,3928.3,1.5256]
[1734010610431,0.16254,3930.2,3928.3,1.5256]
[1734010610711,0.16254,3930.2,3928.3,1.54145851]
[1734010610868,0.16254,3930.2,3928.3,1.64985875]
[1734010611073,0.16254,3930.2,3928.7,2.03628]
[1734010611271,1.6254,3930.3,3928.8,0.01585705]
[1734010611515,1.6597,3931.5,3929.9,3.90840317]
[1734010612114,1.5188,3933.4,3931.4,2.03488]
[1734010612322,1.5337,3932.9,3930.6,0.01581476]
[1734010612616,0.18685146,3933.3,3930.9,2.0351]
[1734010612617,1.56549692,3932.8,3930.9,2.0351]
[1734010612795,1.56549692,3932.8,3930.5,2.03536]
[1734010613007,0.03179352,3932.7,3930.8,2.03519]
[1734010613185,2.54312,3932.2,3930.2,0.12508553]
[1734010613390,0.254312,3932.1,3930.2,0.12508553]
[1734010613710,2.54306,3932.3,3930.5,2.03533]
[1734010614012,2.54343,3931.7,3929.4,1.6257]
[1734010614215,6.45099317,3933.0,3929.3,5.94436317]
[1734010614216,1.5015,3931.2,3929.3,0.12413156]
[1734010614416,1.6584,3929.8,3927.5,5.46480317]
[1734010614621,1.6584,3929.8,3928.3,0.12924488]
[1734010614974,1.6584,3929.8,3928.7,2.29081]
[1734010615178,3.0,3930.8,3928.8,0.01585253]
[1734010615179,1.6584,3930.8,3928.8,0.01585253]
[1734010615377,1.6584,3930.8,3928.8,2.29077]
[1734010615602,1.6584,3930.8,3928.7,6.19920317]
[1734010615603,1.6584,3930.8,3929.3,3.90840317]
[1734010615785,1.6584,3930.8,3929.8,2.29018]
[1734010616000,1.6584,3930.8,3929.5,2.29034]
[1734010616401,1.6584,3930.8,3929.6,2.29028]
[1734010616602,1.6584,3930.8,3929.5,0.01583392]
[1734010616976,1.6584,3930.8,3929.7,2.29019]
[1734010617337,1.6584,3930.8,3929.3,0.1273005]
[1734010617473,1.6584,3930.8,3929.3,2.4177305]
[1734010617670,1.6584,3930.8,3929.4,0.01583586]
[1734010618020,1.6584,3930.8,3929.0,3.0]
[1734010618317,1.6599,3932.3,3929.5,3.0]
[1734010618635,1.6599,3932.3,3931.2,2.28932]
[1734010618920,1.6599,3932.3,3930.4,0.01580856]
[1734010619125,0.15505964,3933.3,3930.4,0.01580856]
[1734010619126,1.69605964,3933.3,3930.9,4.98807223]
[1734010619327,0.03178432,3933.2,3930.5,1.6418]
[1734010619477,0.03178432,3933.2,3931.0,2.28945]
[1734010619676,0.03178432,3933.2,3929.4,4.5737]
[1734010619677,1.648,3932.2,3929.4,4.5737]
[1734010619876,1.5383,3930.8,3929.4,3.8641]
[1734010620078,1.5383,3930.8,3929.4,1.5737]
[1734010620283,1.5383,3930.8,3929.4,3.86409]
[1734010620630,1.5383,3930.8,3928.7,1.67873664]
[1734010620832,2.54411,3930.7,3929.3,2.29046]
[1734010621331,2.54411,3930.7,3928.1,1.6629]
[1734010621332,0.03180276,3930.6,3928.1,1.6629]
[1734010621536,2.54482,3929.6,3928.2,2.29112]
[1734010621700,2.54482,3929.6,3928.1,1.6629]
[1734010621701,1.5786,3930.5,3928.3,0.14568842]
[1734010621900,1.5786,3930.5,3928.4,2.291]
[1734010622139,1.633,3931.2,3929.4,2.29037]
[1734010622324,1.633,3932.4,3929.5,2.30618683]
[1734010622481,1.633,3932.4,3930.8,2.2896]
[1734010622685,1.5858,3932.2,3928.8,0.55]
[1734010622912,2.54415,3930.6,3929.2,2.29049]
[1734010623126,0.28622006,3930.5,3928.0,2.56621876]
[1734010623285,2.54472,3929.7,3928.3,2.29101]
[1734010623490,2.54487,3929.5,3928.2,0.12685727]
[1734010623681,2.54505,3929.2,3928.0,2.56621876]
[1734010623938,2.54569,3928.2,3925.7,2.42364775]
[1734010624102,1.5343,3928.3,3926.3,0.50895462]
[1734010624452,2.5457,3928.2,3926.9,2.29187]
[1734010624591,1.5343,3928.3,3927.1,2.29176]
[1734010624931,2.5465,3927.0,3925.7,3.91507]
[1734010625132,1.5811,3927.9,3925.4,0.12395884]
[1734010625446,1.5811,3926.5,3924.2,2.29346]
[1734010625602,1.5811,3926.5,3924.1,1.86831722]
[1734010625603,0.03183975,3926.4,3925.4,0.50107292]
[1734010625806,1.5811,3926.5,3925.6,2.29262]
[1734010626131,2.54699,3926.2,3924.6,0.50610704]
[1734010626286,2.54699,3926.2,3923.2,0.56280928]
[1734010626287,1.5538,3925.1,3923.2,0.01592364]
[1734010626489,1.5538,3925.1,3922.1,2.29467]
[1734010626490,1.5538,3923.8,3922.1,2.29467]
[1734010626812,1.5538,3923.8,3923.0,0.51205645]
[1734010627044,1.5538,3923.8,3922.6,2.29438]
[1734010627219,1.5538,3923.8,3921.2,1.6137]
[1734010627440,1.5538,3923.8,3921.5,0.12936162]
[1734010627734,1.5538,3923.8,3922.2,0.51327685]
[1734010627934,2.54909,3923.0,3922.2,0.51327685]
[1734010628133,1.6234,3922.9,3922.2,0.51327685]
[1734010628349,2.54963,3922.2,3920.6,0.0159547]
[1734010628553,2.54919,3922.8,3920.1,1.14778605]
[1734010628554,1.5571,3922.1,3921.4,0.50854782]
[1734010628707,2.55015,3921.4,3920.1,1.019416]
[1734010628901,2.58168645,3921.9,3920.1,1.019416]
[1734010629104,0.03187965,3921.9,3919.2,1.559]
[1734010629309,4.10733,3921.2,3918.3,1.559]
[1734010629519,2.55109,3919.9,3918.4,0.01601375]
[1734010629721,2.55057,3920.7,3918.9,2.4598854]
[1734010629924,2.55043,3920.9,3918.9,0.1633454]
[1734010630227,0.03188695,3920.8,3918.9,0.1633454]
[1734010630423,1.40078251,3921.2,3918.9,0.1633454]
[1734010630624,0.13035957,3921.1,3921.0,2.29533]
[1734010630855,0.01587991,3922.0,3920.3,1.5586]
[1734010631021,0.12879296,3921.4,3920.4,4.98807223]
[1734010631356,0.01587991,3922.9,3920.9,0.50839599]
[1734010631555,0.01587991,3924.2,3921.1,3.0]
[1734010631719,0.01587991,3924.2,3920.6,0.0255057]
[1734010631720,0.01587991,3924.2,3920.8,0.02549603]
[1734010631921,2.54892,3923.3,3921.5,2.29504]
[1734010632141,2.54955,3922.3,3921.1,0.02549214]
[1734010632340,2.54868,3923.6,3919.6,3.6028]
[1734010632341,2.54965,3922.2,3919.8,0.02549449]
[1734010632540,2.54933,3922.6,3919.8,0.02549449]
[1734010632707,0.26587991,3922.5,3919.7,0.15322141]
[1734010633036,0.26587991,3922.5,3918.1,1.5497]
[1734010633037,3.0,3922.2,3919.1,0.5194514]
[1734010633252,4.98807223,3922.7,3918.9,0.1633454]
[1734010633253,2.55054,3920.8,3918.9,0.1633454]
[1734010633443,3.0,3921.9,3918.9,0.18885345]
[1734010633608,1.5079,3921.7,3918.9,0.1633454]
[1734010633810,2.55017,3921.3,3918.9,0.1633454]
[1734010634106,1.5079,3920.1,3918.9,0.1633454]
[1734010634754,2.55134,3919.5,3918.9,0.1633454]
[1734010634973,1.6113,3919.9,3918.9,0.1633454]
[1734010635254,2.68078957,3921.0,3917.6,0.17934864]
[1734010635255,3.0,3919.1,3917.6,0.05025]
[1734010635423,2.55269,3917.5,3916.1,0.0008]
[1734010635621,1.6091,3917.3,3916.1,0.0008]
[1734010635832,1.6091,3917.3,3916.1,2.29899]
[1734010636186,1.6091,3918.0,3916.1,2.29899]
[1734010636311,1.6091,3918.0,3916.1,0.0351788]
[1734010636517,0.01587991,3917.9,3916.3,1.6609]
[1734010636718,0.55,3919.6,3917.8,1.6609]
[1734010637038,0.55,3919.8,3917.8,1.6609]
[1734010637363,1.6,3919.4,3917.5,0.0343788]
[1734010637731,1.6148,3920.6,3918.7,2.29668]
[1734010638062,1.6148,3920.6,3917.6,52.1422]
[1734010638063,1.6148,3920.0,3916.4,1.6422]
[1734010638283,1.57,3919.8,3916.4,1.05210568]
[1734010638434,1.57,3919.4,3917.3,2.29747]
[1734010638632,1.57,3919.4,3917.4,0.02551608]
[1734010638866,0.51973482,3921.7,3917.4,0.02551608]
[1734010638867,2.54863,3923.7,3919.0,4.98807223]
[1734010639164,2.54816,3924.4,3917.4,0.02551608]
[1734010639165,0.25,3921.2,3918.6,2.2967]
[1734010639312,0.25,3921.2,3918.4,0.50469147]
[1734010639313,0.25,3920.3,3918.2,4.98807223]
[1734010639518,0.12865884,3920.5,3917.5,3.25]
[1734010639820,0.25,3923.6,3919.5,2.29616]
[1734010640028,4.035,3924.0,3917.6,3.0]
[1734010640029,0.13018867,3920.9,3917.6,3.0]
[1734010640234,0.0689,3922.6,3918.3,4.98807223]
[1734010640543,0.53069722,3922.5,3918.9,2.29656]
[1734010640866,0.0689,3922.6,3919.0,2.29645]
[1734010641077,0.12860784,3922.0,3918.4,4.61560827]
[1734010641357,0.19658994,3922.6,3920.1,1.6302]
[1734010641571,0.0689,3922.6,3921.9,2.29477]
[1734010641750,0.0689,3922.6,3920.8,2.29544]
[1734010641915,0.0689,3922.6,3920.9,0.57550064]
[1734010642117,0.0689,3922.6,3921.6,0.55]
[1734010642352,0.0689,3922.6,3922.4,2.29449]
[1734010643244,0.0689,3922.6,3922.5,4.139]
[1734010643456,0.0689,3922.6,3922.4,2.29449]
[1734010643678,1.5941,3924.0,3922.9,2.2942]
[1734010643964,1.59689959,3924.8,3922.6,2.29439]
[1734010644116,1.59689959,3926.1,3922.8,1.5558]
[1734010644316,2.54742,3925.6,3923.8,2.29366]
[1734010644544,2.57297959,3925.5,3923.7,0.12617367]
[1734010644746,0.02549959,3925.5,3923.7,0.12617367]
[1734010645262,0.02549959,3925.9,3923.7,0.12617367]
[1734010645431,0.20115855,3925.9,3923.7,0.12617367]
[1734010645631,2.54745,3925.5,3923.7,0.12617367]
[1734010645847,0.02549959,3925.8,3923.7,0.12617367]
[1734010646034,0.02549959,3925.8,3923.1,3.02548221]
[1734010646238,2.54767,3925.2,3924.3,0.12674712]
[1734010646415,0.17565896,3925.9,3922.8,1.5558]
[1734010646416,1.5688,3925.0,3922.8,1.5558]
[1734010646616,1.5688,3925.0,3922.9,0.55]
[1734010646919,0.02549959,3926.3,3925.1,2.29291]
[1734010647125,1.5063,3926.4,3925.4,2.29275]
[1734010647323,1.5063,3926.4,3925.5,2.29269]
[1734010647569,1.5063,3926.4,3925.3,2.29281]
[1734010647773,0.02549959,3928.3,3924.7,2.29316]
[1734010647774,1.5054,3927.5,3925.4,0.02547047]
[1734010647924,1.5054,3927.5,3925.7,0.12534694]
[1734010648130,1.5054,3928.4,3925.9,1.5646]
[1734010648371,0.02549959,3929.5,3926.8,4.98807223]
[1734010648525,0.02549959,3929.5,3927.4,2.29159]
[1734010648729,1.5054,3929.8,3927.5,1.5646]
[1734010648927,1.5054,3929.8,3927.8,4.98807223]
[1734010649124,1.5054,3929.8,3929.1,2.29056]
[1734010649436,0.02549959,3929.7,3928.7,2.29078]
[1734010649653,1.65594,3929.8,3928.8,2.29073]
[1734010649819,1.65594,3929.8,3928.4,2.291]
[1734010650020,0.02549959,3929.7,3928.3,0.13045249]
[1734010650260,1.65594,3929.8,3928.3,0.13045249]
[1734010650435,0.165594,3929.7,3928.4,2.291]
[1734010650660,0.02549959,3929.6,3928.3,0.13045249]
[1734010650825,0.02549959,3929.6,3926.1,0.25]
[1734010650826,1.5096,3929.5,3926.3,4.98807223]